[Event "CZE-ch Youth B12 2022"]
[Site "Luhacovice"]
[Date "2022.03.12"]
[Round "1.1"]
[White "Delgerdalai, Bayarjavkhlan"]
[Black "Soucek, Andrej"]
[Result "1-0"]
[ECO "B33"]
[WhiteElo "2074"]
[BlackElo "1399"]
[Annotator "ChessBase"]
[PlyCount "45"]
[EventDate "2022.03.12"]
[EventType "swiss"]
[EventCountry "CZE"]
[SourceTitle "playchess.com"]
[Source "ChessBase"]
[SourceQuality "1"]
[TimeControl "5400+30"]

1. e4 c5 2. Nf3 Nc6 3. d4 cxd4 4. Nxd4 Nf6 5. Nc3 e5 6. Ndb5 d6 7. Bg5 a6 8. Na3 b5 9. Nd5 Be7 10. Bxf6 Bxf6 11. c3 O-O 12. Be2 Be6 13. Nxf6+ gxf6 14. Nc2 f5 15. exf5 Bxf5 16. Ne3 Bg6 17. h4 f5 18. Qd5+ Kh8 19. Qxc6 e4 20. h5 Be8 21. Qd5 f4 22. Ng4 f3 23. Qd4+ 1-0

[Event "CZE-ch Youth B12 2022"]
[Site "Luhacovice"]
[Date "2022.03.12"]
[Round "1.2"]
[White "Tejnor, Martin"]
[Black "Roubal, Matyas"]
[Result "0-1"]
[ECO "B01"]
[WhiteElo "1367"]
[BlackElo "1870"]
[Annotator "NA"]
[PlyCount "48"]
[EventDate "2022.03.12"]
[EventType "swiss"]
[EventCountry "CZE"]
[SourceTitle "playchess.com"]
[Source "ChessBase"]
[SourceQuality "1"]
[TimeControl "5400+30"]

1. e4 {[%emt 0:00:03]} d5 {[%emt 0:00:11]} 2. exd5 {[%emt 0:00:42]} Qxd5 {[%emt 0:00:03]} 3. Nc3 {[%emt 0:00:24]} Qa5 {[%emt 0:00:07]} 4. d4 {[%emt 0:00:47]} Nf6 {[%emt 0:00:20]} 5. Bc4 {[%emt 0:01:59]} c6 {[%emt 0:02:06]} 6. Nf3 {[%emt 0:01:17]} Bf5 {[%emt 0:01:53]} 7. Bd2 {[%emt 0:03:57]} e6 {[%emt 0:03:58]} 8. a3 {[%emt 0:06:28]} Qc7 {[%emt 0:02:09]} 9. Bb3 {[%emt 0:04:29]} Nbd7 {[%emt 0:00:39]} 10. Qe2 {[%emt 0:01:05]} O-O-O {[%emt 0:04:35]} 11. O-O-O {[%emt 0:03:37]} Bd6 {[%emt 0:06:54]} 12. h3 {[%emt 0:05:39]} h6 {[%emt 0:06:25]} 13. Rhe1 {[%emt 0:04:48]} Nb6 {[%emt 0:02:24]} 14. Kb1 {[%emt 0:04:37]} Rhe8 {[%emt 0:07:39]} 15. Ka1 {[%emt 0:06:28]} Nbd5 {[%emt 0:04:53]} 16. Ne5 {[%emt 0:11:58]} Nxc3 {[%emt 0:17:34]} 17. Bxc3 {[%emt 0:00:17]} Ne4 {[%emt 0:01:42]} 18. Qf3 {[%emt 0:08:56]} Bxe5 {[%emt 0:19:50]} 19. dxe5 {[%emt 0:00:19]} Rxd1+ {[%emt 0:00:53]} 20. Rxd1 {[%emt 0:00:15]} Rd8 {[%emt 0:01:04]} 21. Rxd8+ {[%emt 0:05:41]} Qxd8 {[%emt 0:06:22]} 22. Qe3 {[%emt 0:05:01]} Qd1+ {[%emt 0:01:00]} 23. Ka2 {[%emt 0:00:06]} Nxc3+ {[%emt 0:01:54]} 24. Qxc3 {[%emt 0:00:21]} Qe2 {[%emt 0:04:23]} 0-1

[Event "CZE-ch Youth B12 2022"]
[Site "Luhacovice"]
[Date "2022.03.12"]
[Round "1.3"]
[White "Popov, Roman"]
[Black "Letal, Hynek"]
[Result "1-0"]
[ECO "D32"]
[WhiteElo "2353"]
[BlackElo "1371"]
[Annotator "RC"]
[PlyCount "66"]
[EventDate "2022.03.12"]
[EventType "swiss"]
[EventCountry "CZE"]
[SourceTitle "playchess.com"]
[Source "ChessBase"]
[SourceQuality "1"]
[TimeControl "5400+30"]

1. d4 {[%emt 0:00:13]} d5 {[%emt 0:00:16]} 2. c4 {[%emt 0:00:10]} e6 {[%emt 0:00:14]} 3. Nc3 {[%emt 0:00:08]} c5 {[%emt 0:00:40]} 4. cxd5 {[%emt 0:00:28]} cxd4 {[%emt 0:03:00]} 5. Qxd4 {[%emt 0:02:13]} Nc6 {[%emt 0:01:28]} 6. Qd1 {[%emt 0:05:16]} exd5 {[%emt 0:03:09]} 7. Qxd5 {[%emt 0:04:38]} Be6 {[%emt 0:02:15]} 8. Qxd8+ {[%emt 0:03:53]} Rxd8 {[%emt 0:00:16]} 9. Bd2 {[%emt 0:03:46]} Nb4 {[%emt 0:03:14]} 10. O-O-O {[%emt 0:01:33]} Nxa2+ {[%emt 0:01:19]} 11. Nxa2 {[%emt 0:01:35]} Bxa2 {[%emt 0:00:39]} 12. e4 {[%emt 0:02:52]} a6 {[%emt 0:03:37]} 13. Bc3 {[%emt 0:04:14]} Rc8 {[%emt 0:03:10]} 14. Kc2 {[%emt 0:11:52]} b5 {[%emt 0:05:36]} 15. Ra1 {[%emt 0:02:24]} Be6 {[%emt 0:03:32]} 16. Kb1 {[%emt 0:03:50]} Bb3 {[%emt 0:15:10]} 17. Rxa6 {[%emt 0:04:07]} b4 {[%emt 0:00:36]} 18. Bb5+ {[%emt 0:02:24]} Kd8 {[%emt 0:07:35]} 19. Bd4 {[%emt 0:03:30]} Nf6 {[%emt 0:11:22]} 20. Bb6+ {[%emt 0:03:20]} Ke7 {[%emt 0:00:44]} 21. Ra7+ {[%emt 0:04:17]} Ke6 {[%emt 0:01:08]} 22. Nf3 {[%emt 0:01:08]} Bc2+ {[%emt 0:00:52]} 23. Ka1 {[%emt 0:02:21]} h6 {[%emt 0:09:54]} 24. e5 {[%emt 0:02:38]} Bc5 {[%emt 0:03:24]} 25. Bxc5 {[%emt 0:06:23]} Rxc5 {[%emt 0:01:05]} 26. exf6 {[%emt 0:00:48]} Rd8 {[%emt 0:02:01]} 27. fxg7 {[%emt 0:03:34]} Kd5 {[%emt 0:02:49]} 28. Rc1 {[%emt 0:07:30]} b3 {[%emt 0:01:29]} 29. Ne1 {[%emt 0:01:26]} Rdc8 {[%emt 0:01:30]} 30. Bd7 {[%emt 0:03:27]} Be4 {[%emt 0:05:32]} 31. Rd1+ {[%emt 0:00:47]} Bd3 {[%emt 0:01:40]} 32. Bxc8 {[%emt 0:00:28]} Ke4 {[%emt 0:00:41]} 33. g8=Q {[%emt 0:00:21]} Kd5 1-0

[Event "CZE-ch Youth B12 2022"]
[Site "Luhacovice"]
[Date "2022.03.12"]
[Round "1.4"]
[White "Pasek, Josef"]
[Black "Martirosyan, David"]
[Result "0-1"]
[ECO "D02"]
[WhiteElo "1351"]
[BlackElo "1725"]
[Annotator "NA"]
[PlyCount "96"]
[EventDate "2022.03.12"]
[EventType "swiss"]
[EventCountry "CZE"]
[SourceTitle "playchess.com"]
[Source "ChessBase"]
[SourceQuality "1"]
[TimeControl "5400+30"]

1. d4 {[%emt 0:00:07]} d5 {[%emt 0:00:08]} 2. Nf3 {[%emt 0:01:12]} e6 {[%emt 0:00:06]} 3. g3 {[%emt 0:00:12]} b5 {[%emt 0:00:44]} 4. Bg2 {[%emt 0:00:46]} Nf6 {[%emt 0:00:05]} 5. O-O {[%emt 0:00:47]} Bb7 {[%emt 0:00:03]} 6. b3 {[%emt 0:02:40]} Nbd7 {[%emt 0:00:07]} 7. Bb2 {[%emt 0:01:30]} Be7 {[%emt 0:00:20]} 8. Nbd2 {[%emt 0:01:07]} O-O {[%emt 0:02:28]} 9. Rc1 {[%emt 0:02:13]} c5 {[%emt 0:01:23]} 10. Ne5 {[%emt 0:08:36]} Nxe5 {[%emt 0:03:29]} 11. dxe5 {[%emt 0:00:08]} Nd7 {[%emt 0:00:54]} 12. c4 {[%emt 0:00:47]} bxc4 {[%emt 0:02:03]} 13. bxc4 {[%emt 0:00:39]} Nb6 {[%emt 0:02:25]} 14. cxd5 {[%emt 0:05:31]} Bxd5 {[%emt 0:00:22]} 15. Ba3 {[%emt 0:02:12]} Bxg2 {[%emt 0:01:25]} 16. Kxg2 {[%emt 0:00:12]} Qd5+ {[%emt 0:01:09]} 17. Nf3 {[%emt 0:00:54]} Rac8 {[%emt 0:02:21]} 18. Qc2 {[%emt 0:05:05]} Rc7 {[%emt 0:02:42]} 19. Rfd1 {[%emt 0:00:53]} Qb7 {[%emt 0:00:18]} 20. Kg1 {[%emt 0:01:20]} Rfc8 {[%emt 0:00:59]} 21. Rb1 {[%emt 0:03:54]} Qa8 {[%emt 0:02:36]} 22. Nd2 {[%emt 0:03:53]} Nd5 {[%emt 0:04:38]} 23. Nc4 {[%emt 0:05:52]} Nb4 {[%emt 0:10:28]} 24. Qb3 {[%emt 0:06:32]} Rd8 {[%emt 0:06:37]} 25. Rxd8+ {[%emt 0:00:55]} Qxd8 {[%emt 0:00:12]} 26. Bxb4 cxb4 {[%emt 0:00:19]} 27. Rd1 {[%emt 0:01:36]} Rd7 {[%emt 0:00:45]} 28. Rd3 {[%emt 0:00:28]} g6 {[%emt 0:01:59]} 29. Qd1 {[%emt 0:01:02]} Rd5 {[%emt 0:03:32]} 30. Ne3 {[%emt 0:03:21]} Rxd3 {[%emt 0:02:05]} 31. Qxd3 {[%emt 0:00:16]} Qa5 {[%emt 0:03:41]} 32. Qc2 {[%emt 0:05:16]} Qxe5 {[%emt 0:02:37]} 33. Nc4 {[%emt 0:03:47]} Qd4 {[%emt 0:08:17]} 34. Nb2 {[%emt 0:01:22]} Qc3 {[%emt 0:02:17]} 35. Qb1 {[%emt 0:06:00]} a5 {[%emt 0:01:10]} 36. Na4 {[%emt 0:01:00]} Qc6 {[%emt 0:01:42]} 37. Qb3 {[%emt 0:00:18]} Bf6 {[%emt 0:00:58]} 38. e3 {[%emt 0:00:49]} Kg7 {[%emt 0:02:00]} 39. Qd1 {[%emt 0:01:50]} h5 {[%emt 0:01:18]} 40. Qb3 {[%emt 0:01:14]} g5 {[%emt 0:05:43]} 41. Qd1 {[%emt 0:00:59]} Kh6 {[%emt 0:01:24]} 42. Qb3 {[%emt 0:02:04]} h4 {[%emt 0:00:29]} 43. Qd1 {[%emt 0:00:47]} h3 {[%emt 0:02:09]} 44. f3 {[%emt 0:01:40]} g4 {[%emt 0:01:17]} 45. Kf2 {[%emt 0:03:19]} gxf3 {[%emt 0:01:14]} 46. Qxf3 {[%emt 0:02:06]} Qc2+ {[%emt 0:05:25]} 47. Kf1 {[%emt 0:00:48]} Bg5 {[%emt 0:02:11]} 48. Qxf7 {[%emt 0:04:37]} Qd3+ {[%emt 0:03:28]} 0-1

[Event "CZE-ch Youth B12 2022"]
[Site "Luhacovice"]
[Date "2022.03.12"]
[Round "1.5"]
[White "Kroulik, Vaclav"]
[Black "Knapek, Jan"]
[Result "1-0"]
[ECO "B72"]
[WhiteElo "1645"]
[BlackElo "1340"]
[Annotator "NA"]
[PlyCount "83"]
[EventDate "2022.03.12"]
[EventType "swiss"]
[EventCountry "CZE"]
[SourceTitle "playchess.com"]
[Source "ChessBase"]
[SourceQuality "1"]
[TimeControl "5400+30"]

1. e4 {[%emt 0:00:02]} c5 {[%emt 0:00:08]} 2. Nf3 {[%emt 0:00:05]} d6 {[%emt 0:00:05]} 3. d4 {[%emt 0:00:07]} cxd4 {[%emt 0:00:11]} 4. Nxd4 {[%emt 0:00:05]} Nf6 {[%emt 0:00:13]} 5. Nc3 {[%emt 0:00:05]} g6 {[%emt 0:01:12]} 6. Be2 {[%emt 0:00:25]} Bg7 {[%emt 0:00:39]} 7. Be3 {[%emt 0:00:08]} O-O {[%emt 0:01:15]} 8. f3 {[%emt 0:00:24]} Nc6 {[%emt 0:01:26]} 9. Qd2 {[%emt 0:00:46]} Bd7 {[%emt 0:01:34]} 10. O-O {[%emt 0:01:25]} Nxd4 {[%emt 0:00:25]} 11. Bxd4 {[%emt 0:00:09]} a6 {[%emt 0:01:00]} 12. a4 {[%emt 0:01:30]} Qc7 {[%emt 0:01:33]} 13. a5 {[%emt 0:01:19]} Rfb8 {[%emt 0:01:17]} 14. Na4 {[%emt 0:03:21]} Bxa4 {[%emt 0:01:31]} 15. Rxa4 {[%emt 0:00:36]} Qc6 {[%emt 0:00:53]} 16. Rc4 {[%emt 0:00:40]} Qd7 {[%emt 0:00:33]} 17. Bb6 {[%emt 0:01:54]} Rc8 {[%emt 0:00:44]} 18. Rd1 {[%emt 0:03:09]} Rxc4 {[%emt 0:01:09]} 19. Bxc4 {[%emt 0:00:27]} Rc8 {[%emt 0:00:24]} 20. b3 {[%emt 0:01:04]} Qc6 {[%emt 0:00:37]} 21. Qf4 {[%emt 0:07:38]} e5 {[%emt 0:04:54]} 22. Qd2 {[%emt 0:00:41]} Bf8 {[%emt 0:00:14]} 23. h4 {[%emt 0:15:14]} Nd7 {[%emt 0:01:03]} 24. Bf2 {[%emt 0:00:52]} b5 {[%emt 0:01:16]} 25. axb6 {[%emt 0:01:20]} Nxb6 {[%emt 0:00:43]} 26. Bxa6 {[%emt 0:01:22]} Ra8 {[%emt 0:01:12]} 27. Bd3 {[%emt 0:01:19]} Rd8 {[%emt 0:00:55]} 28. Qa5 {[%emt 0:02:06]} Rb8 {[%emt 0:00:53]} 29. Qd2 {[%emt 0:05:41]} d5 {[%emt 0:01:42]} 30. exd5 {[%emt 0:00:28]} Nxd5 {[%emt 0:00:34]} 31. Be4 {[%emt 0:00:26]} Bb4 {[%emt 0:01:08]} 32. Qxd5 {[%emt 0:00:11]} Qf6 {[%emt 0:01:01]} 33. Bg3 {[%emt 0:00:57]} Bc3 {[%emt 0:00:31]} 34. Qd6 {[%emt 0:00:22]} Bd4+ {[%emt 0:00:45]} 35. Rxd4 {[%emt 0:00:07]} Qg7 {[%emt 0:00:58]} 36. Qxb8+ {[%emt 0:00:08]} Qf8 {[%emt 0:00:47]} 37. Rd8 {[%emt 0:00:07]} Kg7 {[%emt 0:00:28]} 38. Bxe5+ {[%emt 0:00:32]} f6 {[%emt 0:00:33]} 39. Rxf8 {[%emt 0:00:46]} fxe5 {[%emt 0:00:14]} 40. Qxe5+ {[%emt 0:00:25]} Kh6 {[%emt 0:00:20]} 41. Bxg6 {[%emt 0:00:40]} hxg6 {[%emt 0:00:13]} 42. Rh8# {[%emt 0:00:12]} 1-0

[Event "CZE-ch Youth B12 2022"]
[Site "Luhacovice"]
[Date "2022.03.12"]
[Round "1.6"]
[White "Topencik, Bruno"]
[Black "Mik, Tomas"]
[Result "0-1"]
[ECO "B07"]
[WhiteElo "1339"]
[BlackElo "1643"]
[Annotator "NA"]
[PlyCount "92"]
[EventDate "2022.03.12"]
[EventType "swiss"]
[EventCountry "CZE"]
[SourceTitle "playchess.com"]
[Source "ChessBase"]
[SourceQuality "1"]
[TimeControl "5400+30"]

1. e4 {[%emt 0:00:02]} d6 {[%emt 0:00:13]} 2. d4 {[%emt 0:00:10]} Nf6 {[%emt 0:00:06]} 3. Nc3 {[%emt 0:00:12]} Nbd7 {[%emt 0:00:16]} 4. Nf3 {[%emt 0:00:38]} e5 {[%emt 0:00:07]} 5. dxe5 {[%emt 0:01:26]} dxe5 {[%emt 0:00:10]} 6. Bc4 {[%emt 0:00:36]} Be7 {[%emt 0:00:17]} 7. O-O {[%emt 0:00:25]} O-O {[%emt 0:00:12]} 8. Qe2 {[%emt 0:03:40]} c6 {[%emt 0:00:55]} 9. a3 {[%emt 0:03:35]} b5 {[%emt 0:02:54]} 10. Ba2 {[%emt 0:02:12]} Qc7 {[%emt 0:00:58]} 11. b4 {[%emt 0:01:52]} a5 {[%emt 0:00:51]} 12. Nd1 {[%emt 0:03:38]} Bb7 {[%emt 0:01:45]} 13. c3 {[%emt 0:01:37]} axb4 {[%emt 0:01:06]} 14. axb4 {[%emt 0:00:56]} c5 {[%emt 0:00:57]} 15. Qxb5 {[%emt 0:03:06]} Bxe4 {[%emt 0:01:54]} 16. Ne3 {[%emt 0:04:26]} cxb4 {[%emt 0:02:07]} 17. cxb4 {[%emt 0:00:35]} Rfb8 {[%emt 0:00:50]} 18. Qc4 {[%emt 0:00:38]} Qxc4 {[%emt 0:00:23]} 19. Nxc4 {[%emt 0:00:10]} Bd3 {[%emt 0:00:14]} 20. Ncxe5 {[%emt 0:02:37]} Nxe5 {[%emt 0:01:15]} 21. Nxe5 {[%emt 0:00:14]} Bxf1 {[%emt 0:00:25]} 22. Kxf1 {[%emt 0:00:53]} Kf8 {[%emt 0:05:11]} 23. Bg5 {[%emt 0:00:33]} Rb7 {[%emt 0:01:06]} 24. Nc6 {[%emt 0:02:47]} Nd5 {[%emt 0:01:16]} 25. Bxe7+ {[%emt 0:01:40]} Nxe7 {[%emt 0:00:11]} 26. b5 {[%emt 0:00:41]} Nxc6 {[%emt 0:02:10]} 27. bxc6 {[%emt 0:00:08]} Rc7 {[%emt 0:00:23]} 28. Ke2 {[%emt 0:00:44]} Rxc6 {[%emt 0:00:36]} 29. Bd5 {[%emt 0:00:32]} Rc2+ {[%emt 0:00:21]} 30. Kd3 {[%emt 0:00:22]} Rxa1 {[%emt 0:00:03]} 31. Kxc2 {[%emt 0:00:06]} Rf1 {[%emt 0:00:07]} 32. Kd2 {[%emt 0:02:06]} Rxf2+ {[%emt 0:00:10]} 33. Ke3 {[%emt 0:00:12]} Rb2 {[%emt 0:00:21]} 34. Kf3 {[%emt 0:00:41]} Ke7 {[%emt 0:00:28]} 35. Bc4 {[%emt 0:01:19]} f5 {[%emt 0:00:22]} 36. h3 {[%emt 0:03:09]} g5 {[%emt 0:00:25]} 37. Ba6 {[%emt 0:09:19]} Rb3+ {[%emt 0:00:13]} 38. Kf2 {[%emt 0:00:24]} Kf6 {[%emt 0:00:07]} 39. Bc8 {[%emt 0:01:05]} Ke5 {[%emt 0:00:11]} 40. Bd7 {[%emt 0:03:39]} Kf4 {[%emt 0:00:24]} 41. Bc6 {[%emt 0:00:57]} Rb2+ {[%emt 0:00:08]} 42. Kf1 {[%emt 0:02:14]} Ke3 {[%emt 0:00:08]} 43. Kg1 {[%emt 0:00:45]} g4 {[%emt 0:00:20]} 44. hxg4 {[%emt 0:00:18]} fxg4 {[%emt 0:00:08]} 45. Kh2 {[%emt 0:00:53]} Kf4 {[%emt 0:00:13]} 46. Bd5 {[%emt 0:00:11]} g3+ {[%emt 0:00:10]} 0-1

[Event "CZE-ch Youth B12 2022"]
[Site "Luhacovice"]
[Date "2022.03.12"]
[Round "1.7"]
[White "Vana, Jan"]
[Black "Krautschneider, Daniel Jan"]
[Result "1-0"]
[ECO "A50"]
[WhiteElo "1609"]
[BlackElo "1304"]
[Annotator "NA"]
[PlyCount "69"]
[EventDate "2022.03.12"]
[EventType "swiss"]
[EventCountry "CZE"]
[SourceTitle "playchess.com"]
[Source "ChessBase"]
[SourceQuality "1"]
[TimeControl "5400+30"]

1. d4 {[%emt 0:00:15]} Nf6 {[%emt 0:00:05]} 2. c4 {[%emt 0:00:06]} g6 {[%emt 0:00:32]} 3. h4 {[%emt 0:00:41]} Bg7 {[%emt 0:00:14]} 4. Nc3 {[%emt 0:00:27]} d5 {[%emt 0:00:06]} 5. e3 {[%emt 0:01:09]} b6 {[%emt 0:02:00]} 6. Nf3 {[%emt 0:01:23]} Bb7 {[%emt 0:00:16]} 7. cxd5 {[%emt 0:07:46]} Nxd5 {[%emt 0:00:32]} 8. Bc4 {[%emt 0:01:40]} O-O {[%emt 0:01:26]} 9. h5 {[%emt 0:06:24]} Nxc3 {[%emt 0:08:12]} 10. bxc3 {[%emt 0:01:23]} c5 {[%emt 0:00:45]} 11. hxg6 {[%emt 0:04:21]} hxg6 {[%emt 0:00:09]} 12. Qd3 {[%emt 0:02:32]} Qd6 {[%emt 0:00:40]} 13. e4 {[%emt 0:11:47]} cxd4 {[%emt 0:00:54]} 14. cxd4 {[%emt 0:03:26]} e6 {[%emt 0:03:46]} 15. Ba3 {[%emt 0:02:22]} Qd8 {[%emt 0:02:50]} 16. Bxf8 {[%emt 0:01:36]} Kxf8 {[%emt 0:00:23]} 17. O-O {[%emt 0:04:19]} Nc6 {[%emt 0:00:32]} 18. Rad1 {[%emt 0:01:55]} Qd7 {[%emt 0:02:12]} 19. d5 {[%emt 0:01:39]} exd5 {[%emt 0:02:04]} 20. Qxd5 {[%emt 0:01:05]} Qxd5 {[%emt 0:01:05]} 21. Bxd5 {[%emt 0:01:36]} Na5 {[%emt 0:01:03]} 22. Bxb7 {[%emt 0:00:18]} Nxb7 {[%emt 0:00:06]} 23. Rd5 {[%emt 0:02:32]} Nc5 {[%emt 0:00:19]} 24. e5 {[%emt 0:02:50]} Ke7 {[%emt 0:00:38]} 25. Rfd1 {[%emt 0:01:49]} Rc8 {[%emt 0:00:49]} 26. Nd4 {[%emt 0:05:35]} Rc7 {[%emt 0:00:40]} 27. Rd6 {[%emt 0:08:02]} Bh6 {[%emt 0:01:11]} 28. Nb5 {[%emt 0:04:33]} Rb7 {[%emt 0:00:31]} 29. Nc3 {[%emt 0:00:39]} Bg7 {[%emt 0:00:40]} 30. Nd5+ {[%emt 0:00:34]} Ke8 {[%emt 0:00:14]} 31. Nf6+ {[%emt 0:01:00]} Bxf6 {[%emt 0:00:48]} 32. exf6 {[%emt 0:01:04]} Nd7 {[%emt 0:00:26]} 33. Re1+ {[%emt 0:00:42]} Kd8 {[%emt 0:00:32]} 34. Re7 {[%emt 0:00:27]} Rc7 {[%emt 0:00:28]} 35. Rxf7 {[%emt 0:00:30]} 1-0

[Event "CZE-ch Youth B12 2022"]
[Site "Luhacovice"]
[Date "2022.03.12"]
[Round "1.8"]
[White "Stejskal, Jakub"]
[Black "Stary, Vojtech"]
[Result "0-1"]
[ECO "C45"]
[WhiteElo "1557"]
[BlackElo "1640"]
[Annotator "NA"]
[PlyCount "84"]
[EventDate "2022.03.12"]
[EventType "swiss"]
[EventCountry "CZE"]
[SourceTitle "playchess.com"]
[Source "ChessBase"]
[SourceQuality "1"]
[TimeControl "5400+30"]

1. e4 {[%emt 0:00:04]} e5 {[%emt 0:00:11]} 2. Nf3 {[%emt 0:01:12]} Nc6 {[%emt 0:00:07]} 3. d4 {[%emt 0:00:54]} exd4 {[%emt 0:00:08]} 4. Nxd4 {[%emt 0:00:07]} Nf6 {[%emt 0:00:09]} 5. Nxc6 {[%emt 0:01:39]} bxc6 {[%emt 0:00:09]} 6. e5 {[%emt 0:14:05]} Qe7 {[%emt 0:00:36]} 7. Qe2 {[%emt 0:02:41]} Nd5 {[%emt 0:00:30]} 8. c4 {[%emt 0:00:58]} Ba6 {[%emt 0:00:33]} 9. b3 {[%emt 0:13:23]} g6 {[%emt 0:15:03]} 10. Bb2 {[%emt 0:05:17]} Nf4 {[%emt 0:07:15]} 11. Qe3 {[%emt 0:07:21]} Bh6 {[%emt 0:06:47]} 12. Qe4 {[%emt 0:08:59]} Ne6 {[%emt 0:10:08]} 13. Be2 {[%emt 0:10:18]} Bb7 {[%emt 0:11:48]} 14. Nc3 {[%emt 0:06:26]} O-O-O {[%emt 0:20:43]} 15. Rd1 {[%emt 0:06:00]} Ng5 {[%emt 0:04:47]} 16. Qe3 {[%emt 0:05:03]} c5 {[%emt 0:05:41]} 17. h4 {[%emt 0:04:01]} Nf3+ {[%emt 0:00:23]} 18. Bxf3 {[%emt 0:04:19]} Bxe3 {[%emt 0:00:28]} 19. Bxb7+ {[%emt 0:00:09]} Kxb7 {[%emt 0:00:09]} 20. fxe3 {[%emt 0:00:24]} Qxe5 {[%emt 0:00:44]} 21. Rh3 {[%emt 0:00:24]} Rhe8 {[%emt 0:03:57]} 22. Na4 {[%emt 0:01:17]} Qf5 {[%emt 0:03:20]} 23. Rf3 {[%emt 0:01:12]} Qh5 {[%emt 0:03:11]} 24. Bf6 {[%emt 0:00:17]} d6 {[%emt 0:02:31]} 25. Bxd8 {[%emt 0:01:36]} Rxd8 {[%emt 0:00:15]} 26. Rxf7 {[%emt 0:01:01]} Qxh4+ {[%emt 0:00:14]} 27. Rf2 {[%emt 0:00:19]} Re8 {[%emt 0:00:56]} 28. Rd3 {[%emt 0:01:26]} Rf8 {[%emt 0:00:48]} 29. Rdd2 {[%emt 0:00:22]} Qg3 {[%emt 0:00:27]} 30. Rde2 {[%emt 0:01:08]} Rxf2 {[%emt 0:00:22]} 31. Rxf2 {[%emt 0:00:10]} Qxe3+ {[%emt 0:00:06]} 32. Re2 {[%emt 0:00:12]} Qg1+ {[%emt 0:01:02]} 33. Kd2 {[%emt 0:00:14]} Qd4+ {[%emt 0:00:07]} 34. Ke1 {[%emt 0:00:16]} g5 {[%emt 0:00:48]} 35. Nb2 {[%emt 0:01:24]} h5 {[%emt 0:00:56]} 36. Nd1 {[%emt 0:00:39]} g4 {[%emt 0:00:28]} 37. Ne3 {[%emt 0:00:28]} h4 {[%emt 0:01:33]} 38. Kf2 {[%emt 0:01:09]} Qf4+ {[%emt 0:00:22]} 39. Kg1 {[%emt 0:01:05]} g3 {[%emt 0:00:40]} 40. Nf1 {[%emt 0:00:39]} c6 {[%emt 0:00:34]} 41. Rd2 {[%emt 0:01:34]} d5 {[%emt 0:00:21]} 42. cxd5 {[%emt 0:00:19]} cxd5 {[%emt 0:00:10]} 0-1

[Event "CZE-ch Youth B12 2022"]
[Site "Luhacovice"]
[Date "2022.03.12"]
[Round "1.9"]
[White "Mydlar, Matej"]
[Black "Sotek, Simon"]
[Result "1/2-1/2"]
[ECO "C01"]
[WhiteElo "1554"]
[BlackElo "1280"]
[Annotator "NA"]
[PlyCount "112"]
[EventDate "2022.03.12"]
[EventType "swiss"]
[EventCountry "CZE"]
[SourceTitle "playchess.com"]
[Source "ChessBase"]
[SourceQuality "1"]
[TimeControl "5400+30"]

1. e4 {[%emt 0:00:09]} e6 {[%emt 0:00:06]} 2. d4 {[%emt 0:00:20]} d5 {[%emt 0:00:06]} 3. exd5 {[%emt 0:00:41]} exd5 {[%emt 0:00:06]} 4. Nf3 {[%emt 0:00:13]} Nf6 {[%emt 0:00:08]} 5. Bd3 {[%emt 0:01:04]} Bd6 {[%emt 0:00:46]} 6. O-O {[%emt 0:00:49]} O-O {[%emt 0:00:33]} 7. Nc3 {[%emt 0:02:58]} h6 {[%emt 0:00:43]} 8. h3 {[%emt 0:01:52]} Nc6 {[%emt 0:02:21]} 9. Re1 {[%emt 0:03:29]} Be6 {[%emt 0:02:25]} 10. Ne2 {[%emt 0:04:04]} Nb4 {[%emt 0:04:47]} 11. Nf4 {[%emt 0:02:50]} Nxd3 {[%emt 0:03:13]} 12. Nxe6 {[%emt 0:01:09]} fxe6 {[%emt 0:00:24]} 13. cxd3 {[%emt 0:01:06]} Qe7 {[%emt 0:03:39]} 14. Ne5 {[%emt 0:03:20]} Bxe5 {[%emt 0:04:17]} 15. dxe5 {[%emt 0:01:40]} Nd7 {[%emt 0:00:40]} 16. b3 {[%emt 0:01:00]} Qc5 {[%emt 0:01:18]} 17. d4 {[%emt 0:00:28]} Qe7 {[%emt 0:02:53]} 18. Qg4 {[%emt 0:02:13]} Kh7 {[%emt 0:01:14]} 19. a4 {[%emt 0:01:14]} Rf5 {[%emt 0:04:09]} 20. f4 {[%emt 0:01:06]} Qb4 {[%emt 0:02:04]} 21. Qd1 {[%emt 0:01:25]} c5 {[%emt 0:01:17]} 22. g4 {[%emt 0:02:13]} Rf7 {[%emt 0:03:49]} 23. f5 {[%emt 0:01:35]} exf5 {[%emt 0:01:34]} 24. e6 {[%emt 0:03:08]} Re7 {[%emt 0:01:04]} 25. Ba3 {[%emt 0:00:32]} Qc3 {[%emt 0:00:53]} 26. Kg2 {[%emt 0:02:26]} f4 {[%emt 0:05:23]} 27. Qf3 {[%emt 0:01:47]} Qxf3+ {[%emt 0:17:17]} 28. Kxf3 {[%emt 0:00:14]} Nf8 {[%emt 0:01:42]} 29. Bxc5 {[%emt 0:00:38]} Rxe6 {[%emt 0:00:43]} 30. Bxf8 {[%emt 0:00:53]} Rxe1 {[%emt 0:00:13]} 31. Rxe1 {[%emt 0:00:03]} Rxf8 {[%emt 0:00:08]} 32. Re5 {[%emt 0:00:07]} Rc8 {[%emt 0:01:05]} 33. Kxf4 {[%emt 0:00:21]} Rc3 {[%emt 0:00:53]} 34. Rxd5 {[%emt 0:00:29]} Rxb3 {[%emt 0:01:24]} 35. h4 {[%emt 0:02:13]} a6 {[%emt 0:03:31]} 36. Rd6 {[%emt 0:03:26]} Ra3 {[%emt 0:00:58]} 37. g5 {[%emt 0:00:18]} hxg5+ {[%emt 0:00:42]} 38. hxg5 {[%emt 0:00:12]} Rxa4 {[%emt 0:00:09]} 39. g6+ {[%emt 0:00:50]} Kh6 {[%emt 0:00:45]} 40. Kf5 {[%emt 0:00:08]} Ra1 {[%emt 0:00:27]} 41. Rb6 {[%emt 0:00:34]} Ra5+ {[%emt 0:00:40]} 42. Ke4 {[%emt 0:00:22]} Ra1 {[%emt 0:05:03]} 43. Rxb7 {[%emt 0:00:19]} Kxg6 {[%emt 0:00:09]} 44. d5 {[%emt 0:00:09]} Re1+ {[%emt 0:00:22]} 45. Kd4 {[%emt 0:00:11]} Kh6 {[%emt 0:00:29]} 46. Rb6+ {[%emt 0:00:08]} Kh5 {[%emt 0:00:15]} 47. Rxa6 {[%emt 0:00:06]} g5 {[%emt 0:00:10]} 48. Ra2 {[%emt 0:00:14]} Kh4 {[%emt 0:00:23]} 49. d6 {[%emt 0:00:04]} g4 {[%emt 0:00:11]} 50. Kd5 {[%emt 0:00:21]} Kh3 {[%emt 0:00:31]} 51. d7 {[%emt 0:00:08]} g3 {[%emt 0:00:44]} 52. Kc6 {[%emt 0:00:05]} Rc1+ {[%emt 0:00:36]} 53. Kb7 {[%emt 0:00:09]} Rd1 {[%emt 0:00:06]} 54. Kc7 {[%emt 0:00:09]} g2 {[%emt 0:00:32]} 55. Rxg2 {[%emt 0:00:09]} Rxd7+ {[%emt 0:00:16]} 56. Kxd7 {[%emt 0:00:07]} Kxg2 {[%emt 0:00:08]} 1/2-1/2